bitfinex-derivatives/quotes_SOLF0:USTF0_20250216
["timestamp","ask_amount","ask_price","bid_price","bid_amount"]
[1739741024520,0.03699527,186.99,186.95,0.03421711]
[1739741025522,5.3475,186.98,186.95,0.03421711]
[1739741025822,0.03699527,186.99,186.95,0.03421711]
[1739741026022,12.56443034,186.99,186.95,0.03421711]
[1739741026223,1.33691315,186.98,186.95,0.03421711]
[1739741026525,12.52743507,186.96,186.95,0.03421711]
[1739741026819,12.52743507,186.96,186.86,2.803]
[1739741026820,13.86434822,186.96,186.86,2.803]
[1739741027027,12.52743507,186.92,186.85,21.2122239]
[1739741027321,8.1193,187.01,186.85,21.2122239]
[1739741027322,17.87743507,186.89,186.85,21.2122239]
[1739741028021,17.91607635,186.89,186.85,21.24837613]
[1739741028220,0.03864128,186.89,186.85,21.24837613]
[1739741029423,0.03864128,186.89,186.85,0.03615223]
[1739741030818,0.03864128,186.89,186.86,5.3507]
[1739741031219,0.03864128,186.89,186.85,0.03615223]
[1739741031421,0.03864128,186.89,186.86,5.3507]
[1739741032216,0.03864128,186.89,186.88,5.3502]
[1739741032524,0.03864128,186.89,186.85,0.03615223]
[1739741033525,0.03864128,186.89,186.86,5.3505]
[1739741033720,0.03864128,186.89,186.85,0.03615223]
[1739741034922,1.3374632,186.88,186.85,0.03615223]
[1739741035122,0.03864128,186.89,186.85,0.03615223]
[1739741036432,8.1193,187.01,186.87,12.52743507]
[1739741036433,12.52743507,186.98,186.87,12.52743507]
[1739741036634,1.33708769,186.97,186.91,5.3493]
[1739741036834,1.33708769,186.96,186.91,5.3493]
[1739741037034,1.33708769,186.95,186.91,5.3493]
[1739741037237,18.01523507,187.01,186.87,12.52743507]
[1739741037435,1.33686453,187.0,186.9,12.52743507]
[1739741037632,0.03870342,186.96,186.92,0.03572927]
[1739741037836,0.03870342,186.96,186.94,5.3484]
[1739741038336,0.03870342,186.96,186.92,0.03572927]
[1739741039139,1.33695903,186.95,186.92,0.03572927]
[1739741039442,0.03870342,186.96,186.92,0.03572927]
[1739741039642,0.03870342,186.96,186.93,5.3487]
[1739741040437,0.03870342,186.96,186.94,5.3483]
[1739741040644,0.03870342,186.96,186.92,0.03572927]
[1739741040836,12.52743507,187.04,186.93,12.52743507]
[1739741041143,1.33676811,187.03,186.96,12.52743507]
[1739741041339,1.33676811,187.02,186.98,5.3473]
[1739741041540,1.33676811,187.01,186.96,12.52743507]
[1739741041940,206.52743507,187.07,186.96,12.52743507]
[1739741042245,0.03374857,187.0,186.97,0.03681479]
[1739741042446,206.52743507,187.07,186.98,5.3473]
[1739741042643,0.03385877,187.0,186.97,0.03681479]
[1739741042836,17.87243507,187.07,187.0,5.3467]
[1739741043146,1.33635104,187.06,186.96,12.52743507]
[1739741043344,1.37662853,187.05,187.02,0.03776381]
[1739741043545,0.04027749,187.05,187.02,0.03776381]
[1739741045344,0.04027749,187.05,187.03,5.3457]
[1739741045841,0.04027749,187.05,187.04,5.3456]
[1739741046848,0.04027749,187.05,187.02,0.03776381]
[1739741048443,0.04027749,187.05,187.03,5.3459]
[1739741048846,0.04027749,187.05,187.02,0.03776381]
[1739741049348,0.04027749,187.05,187.04,5.3456]
[1739741050544,5.3436,187.12,187.06,5.345]
[1739741050948,5.3437,187.11,187.02,12.52743507]
[1739741051145,12.52743507,187.1,187.01,2.7911]
[1739741051549,12.52743507,187.1,187.0,5.5316]
[1739741051745,0.03861976,187.07,187.04,2.013e-05]
[1739741051948,12.52743507,187.03,186.91,5.3743]
[1739741052148,12.52743507,187.0,186.91,5.3743]
[1739741052342,12.52743507,187.0,186.91,2.6491]
[1739741052547,5.3483,186.95,186.91,2.6491]
[1739741052748,12.52743507,186.97,186.9,21.2122239]
[1739741053252,5.3488,186.94,186.93,21.2122239]
[1739741053656,12.52743507,186.94,186.92,56.60484845]
[1739741053857,12.52743507,186.94,186.91,84.84889562]
[1739741054060,13.86484805,186.93,186.91,2.707e-05]
[1739741054354,12.52743507,186.94,186.91,2.707e-05]
[1739741054649,1.33744098,186.93,186.91,2.707e-05]
[1739741054853,1.33744098,186.92,186.91,2.707e-05]
[1739741055053,12.52743507,186.94,186.91,2.707e-05]
[1739741055255,1.33741697,186.93,186.9,0.03375493]
[1739741055454,1.33747101,186.92,186.9,0.03375493]
[1739741055653,12.52743507,186.94,186.9,0.03375493]
[1739741056652,6.68620914,186.93,186.9,0.03375493]
[1739741056854,12.52743507,186.94,186.9,0.03375493]
[1739741057053,1.33744419,186.93,186.9,0.03375493]
[1739741057252,12.52743507,186.94,186.9,0.03375493]
[1739741058053,0.0403548,186.95,186.9,0.03375493]
[1739741059646,0.0403548,186.95,186.9,12.56119]
[1739741060549,0.0403548,186.95,186.9,0.03375493]
[1739741061155,0.0403548,186.95,186.94,5.3485]
[1739741061357,20.01884383,187.07,186.91,20.01884383]
[1739741061553,1.33681179,187.06,186.92,2.741]
[1739741061854,1.33681179,187.05,186.92,2.741]
[1739741062050,21.35565562,187.04,186.92,2.741]
[1739741062254,1.33681179,187.03,186.92,2.741]
[1739741062455,0.03549022,187.0,186.96,0.03570114]
[1739741064150,194.0,187.1,186.96,0.03570114]
[1739741064351,21.80849613,187.04,186.95,20.01884383]
[1739741064757,21.80849613,187.04,187.01,5.3465]
[1739741065253,21.80849613,187.04,187.02,5.3462]
[1739741065453,21.84915646,187.04,187.02,5.3462]
[1739741065855,21.84915646,187.04,187.03,5.3459]
[1739741066056,13.22665646,187.04,187.03,5.3459]
[1739741066253,5.646e-05,187.04,187.03,5.3459]
[1739741069655,21.81417997,187.11,187.1,5.3439]
[1739741069857,2.8055,187.17,187.06,20.01884383]
[1739741070255,2.8055,187.17,187.1,5.3437]
[1739741070752,0.03775242,187.15,187.12,5.38177106]
[1739741070958,0.03775242,187.15,187.12,0.03847106]
[1739741078162,0.03775242,187.15,187.14,5.3428]
[1739741080165,5.242e-05,187.15,187.14,5.3428]
[1739741083567,5.242e-05,187.15,187.13,2.8212]
[1739741084162,5.242e-05,187.15,187.13,8.164]
[1739741084371,5.242e-05,187.15,187.13,2.8212]
[1739741084672,5.242e-05,187.15,187.12,0.03847106]
[1739741086568,5.242e-05,187.15,187.12,5.38177106]
[1739741086969,5.242e-05,187.15,187.12,0.03847106]
[1739741087271,5.242e-05,187.15,187.12,5.38177106]
[1739741088176,5.242e-05,187.15,187.12,0.03847106]
[1739741089874,5.34255242,187.15,187.12,0.03847106]
[1739741090075,5.242e-05,187.15,187.12,0.03847106]
[1739741091166,5.343,187.14,187.12,0.03847106]
[1739741091770,5.343,187.13,187.12,0.03847106]
[1739741093878,5.3429,187.14,187.12,0.03847106]
[1739741094376,5.34255242,187.15,187.12,0.03847106]
[1739741094576,5.242e-05,187.15,187.12,0.03847106]
[1739741095369,5.343,187.14,187.12,0.03847106]
[1739741096378,5.3428,187.14,187.12,0.03847106]
[1739741096572,5.242e-05,187.15,187.12,0.03847106]
[1739741096970,5.343,187.14,187.12,0.03847106]
[1739741097172,5.242e-05,187.15,187.12,0.03847106]
[1739741098181,5.343,187.13,187.12,0.03847106]
[1739741100981,5.242e-05,187.15,187.12,0.03847106]
[1739741101480,5.343,187.13,187.12,0.03847106]
[1739741102180,5.242e-05,187.15,187.12,0.03847106]
[1739741104081,5.242e-05,187.15,187.12,5.38177106]
[1739741104281,5.242e-05,187.15,187.12,0.03847106]
[1739741105084,5.343,187.13,187.12,0.03847106]
[1739741105274,6.67886318,187.13,187.12,0.03847106]
[1739741105979,5.3439,187.1,187.01,12.4804455]
[1739741106579,21.7960169,187.16,187.04,12.4804455]
[1739741106784,1.33591549,187.15,187.07,12.4804455]
[1739741107082,0.03976155,187.13,187.09,0.03446836]
[1739741107480,0.03976155,187.13,187.11,5.3434]
[1739741107680,0.03976155,187.13,187.09,0.03446836]
[1739741108081,0.03976155,187.13,187.12,5.3433]
[1739741109385,0.03976155,187.13,187.11,5.3435]
[1739741110193,0.03976155,187.13,187.1,12.4804455]
[1739741110488,0.03976155,187.13,187.1,17.8242455]
[1739741110689,0.03976155,187.13,187.1,12.4804455]
[1739741111082,0.03976155,187.13,187.09,0.03446836]
[1739741112491,6.6791752,187.12,187.09,0.03446836]
[1739741112689,1.3357752,187.11,187.09,0.03446836]
[1739741112989,5.3434,187.12,187.09,0.03446836]
[1739741113193,1.33584056,187.11,187.09,0.03446836]
[1739741113389,5.38286155,187.13,187.09,0.03446836]
[1739741113590,1.33585448,187.12,187.09,0.03446836]
[1739741113790,1.33585448,187.11,187.09,0.03446836]
[1739741114091,5.38286155,187.13,187.09,0.03446836]
[1739741114291,1.33585559,187.12,187.09,0.03446836]
[1739741114591,1.33585559,187.11,187.09,0.03446836]
[1739741114790,0.03976155,187.13,187.09,0.03446836]
[1739741115091,1.33584054,187.12,187.09,0.03446836]
[1739741115289,0.03976155,187.13,187.1,5.3438]
[1739741115491,0.03976155,187.13,187.09,0.03446836]
[1739741116292,0.03976155,187.13,187.1,5.3436]
[1739741116493,0.03976155,187.13,187.09,0.03446836]
[1739741117690,0.03976155,187.13,187.12,5.3433]
[1739741118094,0.03976155,187.13,187.1,12.4804455]
[1739741118789,0.03976155,187.13,187.12,5.3433]
[1739741121198,0.03976155,187.13,187.11,5.3436]
[1739741121893,0.03976155,187.13,187.12,5.3433]
[1739741123893,0.03976155,187.13,187.09,0.03446836]
[1739741124695,0.03976155,187.13,187.09,5.37846836]
[1739741125497,0.03976155,187.13,187.1,5.3439]
[1739741125998,0.03976155,187.13,187.09,0.03446836]
[1739741126400,1.33578164,187.12,187.09,0.03446836]
[1739741126596,1.33578164,187.11,187.09,0.03446836]
[1739741126795,1.33578164,187.1,187.09,0.03446836]
[1739741127494,6.67968164,187.1,187.09,0.03446836]
[1739741128300,6.680016,187.1,187.09,0.03446836]
[1739741131098,21.83577845,187.13,187.09,0.03446836]
[1739741132403,21.83577845,187.13,187.1,12.4804455]
[1739741132603,21.83577845,187.13,187.12,5.3433]
[1739741132801,17.52607845,187.13,187.12,5.3433]
[1739741133301,17.52607845,187.2,187.12,5.3433]
[1739741133501,1.33554479,187.19,187.12,5.3433]
[1739741133703,1.33554479,187.18,187.12,5.3433]
[1739741133899,1.33554479,187.17,187.12,5.3433]
[1739741134097,1.33546825,187.16,187.13,0.03814176]
[1739741134397,0.03762788,187.17,187.13,0.03814176]
[1739741136402,1.33543864,187.16,187.13,0.03814176]
[1739741136608,1.33543864,187.15,187.13,0.03814176]
[1739741136802,1.33543864,187.14,187.13,0.03814176]
[1739741137101,6.67823864,187.14,187.13,0.03814176]
[1739741138807,1.33543864,187.14,187.05,119.88]
[1739741139002,15.1551455,187.16,187.05,119.88]
[1739741139003,12.4804455,187.12,187.05,119.88]
[1739741139207,1.33543864,187.11,187.05,119.88]
[1739741139506,1.33543864,187.1,187.03,5.3458]
[1739741139707,1.33543864,187.09,187.03,5.3458]
[1739741140006,1.3724102,187.08,187.05,0.03518773]
[1739741140208,5.38157156,187.08,187.05,0.03518773]
[1739741140404,0.03697156,187.08,187.05,0.03518773]
[1739741141004,1.33619787,187.07,187.05,0.03518773]
[1739741141209,1.33619787,187.06,187.05,0.03518773]
[1739741141506,0.03697156,187.08,187.05,0.03518773]
[1739741142907,75.05602598,187.13,187.07,12.4804455]
[1739741143110,1.33582797,187.12,187.07,12.4804455]
[1739741143407,75.05602598,187.13,187.07,12.4804455]
[1739741143903,75.05602598,187.13,187.1,12.4804455]
[1739741144108,0.03787581,187.11,187.1,12.4804455]
[1739741144416,75.05602598,187.13,187.1,12.5184898]
[1739741145008,2.8697,187.21,187.13,5.343]
[1739741145009,5.3411,187.2,187.13,5.343]
[1739741145208,1.33534509,187.19,187.1,12.4804455]
[1739741145509,1.33543835,187.18,187.15,0.03563651]
[1739741145712,5.3416,187.19,187.15,0.03563651]
[1739741146011,1.33540228,187.18,187.15,0.03563651]
[1739741146311,5.3416,187.19,187.15,0.03563651]
[1739741146509,5.3421,187.17,187.15,0.03563651]
[1739741146808,2.8697,187.21,187.15,0.03563651]
[1739741147112,1.33553912,187.2,187.15,0.03563651]
[1739741147307,1.33553912,187.19,187.15,0.03563651]
[1739741147514,1.33553912,187.18,187.15,0.03563651]
[1739741147712,2.8697,187.21,187.15,0.03563651]
[1739741148011,1.3354115,187.2,187.15,0.03563651]
[1739741148213,1.3354115,187.19,187.15,0.03563651]
[1739741148412,1.3354115,187.18,187.15,0.03563651]
[1739741148611,1.3354115,187.17,187.15,0.03563651]
[1739741148812,2.8697,187.21,187.15,0.03563651]
[1739741149012,1.33550226,187.2,187.15,0.03563651]
[1739741149209,1.33550226,187.19,187.15,0.03563651]
[1739741149412,1.33550226,187.18,187.15,0.03563651]
[1739741149712,1.33552532,187.17,187.15,0.03563651]
[1739741149914,15.3501455,187.21,187.15,0.03563651]
[1739741150113,1.33550425,187.2,187.15,0.03563651]
[1739741150314,5.3417,187.18,187.15,0.03563651]
[1739741150616,1.33550425,187.17,187.15,0.03563651]
[1739741150915,5.3417,187.18,187.15,0.03563651]
[1739741151114,1.33551771,187.17,187.15,0.03563651]
[1739741151312,5.3417,187.18,187.15,0.03563651]
[1739741151513,1.33551338,187.17,187.15,0.03563651]
[1739741151713,5.3417,187.18,187.15,0.03563651]
[1739741151907,1.33551338,187.17,187.15,0.03563651]
[1739741152112,5.3413,187.2,187.15,0.03563651]
[1739741152309,1.33537158,187.19,187.15,0.03563651]
[1739741152515,5.3413,187.2,187.15,0.03563651]
[1739741152717,1.33537158,187.19,187.15,0.03563651]
[1739741153022,5.3413,187.2,187.15,0.03563651]
[1739741153223,1.33537158,187.19,187.15,0.03563651]
[1739741153425,5.3413,187.2,187.15,0.03563651]
[1739741153625,1.33536493,187.19,187.15,0.03563651]
[1739741153825,5.3413,187.2,187.15,0.03563651]
[1739741154024,1.33537166,187.19,187.15,0.03563651]
[1739741154226,5.3413,187.2,187.15,0.03563651]
[1739741154526,8.2105,187.21,187.15,5.37803651]
[1739741154721,1.33532226,187.2,187.15,0.03563651]
[1739741154929,8.1071,187.24,187.18,5.3415]
[1739741155230,1.3352399,187.23,187.18,5.3415]
[1739741155424,1.3352399,187.22,187.19,0.03368858]
[1739741155728,1.3352399,187.21,187.19,0.03368858]
[1739741155928,2.767,187.24,187.19,0.03368858]
[1739741156227,58.15598968,187.26,187.19,0.03368858]
[1739741156520,1.33498265,187.25,187.19,12.51413408]
[1739741156723,58.15598968,187.26,187.19,12.51413408]
[1739741157224,58.15598968,187.28,187.19,12.51413408]
[1739741157427,1.33490347,187.27,187.19,12.51413408]
[1739741157624,58.15598968,187.28,187.19,12.51413408]
[1739741157825,1.33490404,187.27,187.19,12.51413408]
[1739741158026,58.15598968,187.28,187.19,12.51413408]
[1739741158323,58.15598968,187.28,187.23,5.3401]
[1739741158531,58.15598968,187.28,187.22,12.4804455]
[1739741158827,58.15598968,187.28,187.24,0.03837965]
[1739741160120,58.15598968,187.28,187.27,5.3391]
[1739741161024,0.19886,187.29,187.27,5.3391]
[1739741161224,0.19886,187.29,187.25,15.0745455]
[1739741161420,0.19886,187.29,187.24,0.03837965]
[1739741162823,5.3393,187.27,187.24,0.03837965]
[1739741163028,0.19886,187.29,187.24,0.03837965]
[1739741163430,5.3394,187.26,187.24,0.03837965]
[1739741163931,5.339,187.28,187.24,0.03837965]
[1739741164229,0.19886,187.29,187.24,0.03837965]
[1739741164429,5.3392,187.27,187.24,0.03837965]
[1739741164631,0.19886,187.29,187.24,0.03837965]
[1739741165129,5.53756,187.29,187.24,0.03837965]
[1739741166232,0.19886,187.29,187.24,0.03837965]
[1739741166930,0.19886,187.29,187.25,5.3394]
[1739741167627,0.19886,187.29,187.25,12.4804455]
[1739741168729,5.3392,187.27,187.24,0.03837965]
[1739741168927,12.4804455,187.3,187.24,0.03837965]
[1739741169230,36.90500248,187.36,187.24,0.03837965]
[1739741169231,12.4804455,187.33,187.24,0.03837965]
[1739741169425,12.4804455,187.33,187.19,12.4804455]
[1739741169726,24.42455698,187.36,187.27,0.03502129]
[1739741169927,24.42455698,187.36,187.25,12.4804455]
[1739741170124,5.3373,187.34,187.29,0.0399506]
[1739741170432,24.42455698,187.36,187.29,0.0399506]
[1739741171427,5.338,187.31,187.29,0.0399506]
[1739741171829,36.90500248,187.36,187.29,0.0399506]
[1739741172032,1.33466552,187.35,187.29,0.0399506]
[1739741172232,36.90500248,187.36,187.29,0.0399506]
[1739741172429,1.3345992,187.35,187.29,0.0399506]
[1739741172635,5.3381,187.31,187.29,0.0399506]
[1739741172836,15.1268455,187.36,187.29,0.0399506]
[1739741173134,1.33462956,187.35,187.29,0.0399506]
[1739741173334,15.1268455,187.36,187.29,0.0399506]
[1739741173536,1.33462956,187.35,187.29,0.0399506]
[1739741173735,15.1268455,187.36,187.29,0.0399506]
[1739741174437,1.33456388,187.35,187.29,0.0399506]
[1739741174638,15.1268455,187.36,187.29,0.0399506]
[1739741175234,1.33453693,187.35,187.29,0.0399506]
[1739741175434,15.1268455,187.36,187.29,0.0399506]
[1739741175635,5.3371,187.34,187.29,0.0399506]
[1739741176134,5.337,187.35,187.29,5.3783506]
[1739741176538,15.1268455,187.36,187.29,5.3783506]
[1739741176834,5.3373,187.33,187.29,0.0399506]
[1739741177039,15.1268455,187.36,187.29,0.0399506]
[1739741177239,1.33458572,187.35,187.29,0.0399506]
[1739741177439,1.33458572,187.34,187.29,0.0399506]
[1739741177738,15.1268455,187.36,187.29,0.0399506]
[1739741178532,1.33456125,187.35,187.29,0.0399506]
[1739741178735,5.3376,187.33,187.29,0.0399506]
[1739741179037,15.1268455,187.36,187.29,0.0399506]
[1739741179739,5.3374,187.33,187.29,0.0399506]
[1739741179937,15.1268455,187.36,187.29,0.0399506]
[1739741180643,5.3373,187.34,187.29,5.3783506]
[1739741181037,15.1268455,187.36,187.29,5.3783506]
[1739741181038,15.1268455,187.36,187.29,0.0399506]
[1739741181541,1.33455131,187.35,187.29,0.0399506]
[1739741181742,15.1268455,187.36,187.29,0.0399506]
[1739741182040,5.3379,187.32,187.29,0.0399506]
[1739741182741,5.3373,187.34,187.29,0.0399506]
[1739741183240,5.3373,187.34,187.29,5.3782506]
[1739741183437,5.3373,187.34,187.29,0.0399506]
[1739741187442,15.1268455,187.36,187.29,0.0399506]
[1739741187647,1.33437173,187.35,187.29,0.0399506]
[1739741187847,15.1268455,187.36,187.29,0.0399506]
[1739741188145,1.33438517,187.35,187.29,0.0399506]
[1739741188443,15.1268455,187.36,187.29,0.0399506]
[1739741188645,1.33438517,187.35,187.29,0.0399506]
[1739741188840,12.4804455,187.33,187.29,0.0399506]
[1739741189235,5.3382,187.3,187.29,0.0399506]
[1739741191438,1.33466241,187.3,187.29,0.0399506]
[1739741191645,5.338,187.31,187.29,0.0399506]
[1739741192038,12.4804455,187.33,187.29,0.0399506]
[1739741192242,194.0,187.35,187.29,0.0399506]
[1739741192439,1.33445869,187.34,187.29,0.0399506]
[1739741192640,1.33445869,187.33,187.29,0.0399506]
[1739741192843,194.0,187.35,187.29,0.0399506]
[1739741193042,21.77815698,187.33,187.29,0.0399506]
[1739741193448,27.11575698,187.33,187.29,0.0399506]
[1739741194244,5.3376,187.32,187.29,0.0399506]
[1739741196256,215.77815698,187.35,187.29,0.0399506]
[1739741196553,1.33449472,187.34,187.29,0.0399506]
[1739741196752,1.33449472,187.33,187.29,0.0399506]
[1739741197051,6.67229472,187.32,187.29,0.0399506]
[1739741197247,1.33449472,187.31,187.29,0.0399506]
[1739741197454,1.33449472,187.3,187.29,0.0399506]
[1739741197849,215.77815698,187.35,187.29,0.0399506]
[1739741198049,1.33450323,187.34,187.29,0.0399506]
[1739741198353,1.33450323,187.33,187.29,0.0399506]
[1739741198553,1.33450323,187.32,187.29,0.0399506]
[1739741198753,1.33450323,187.31,187.29,0.0399506]
[1739741198953,1.33450323,187.3,187.29,0.0399506]
[1739741199153,6.67270323,187.3,187.29,0.0399506]
[1739741199855,5.3382,187.3,187.29,0.0399506]
[1739741200055,6.6727758,187.3,187.29,0.0399506]
[1739741202948,1.3345758,187.3,187.29,0.0399506]
[1739741204355,1.3345758,187.3,187.29,5.3784506]
[1739741204557,21.77815698,187.33,187.29,0.0399506]
[1739741204758,21.77815698,187.33,187.32,7.97970018]
[1739741204953,75.11807525,187.34,187.32,7.97970018]
[1739741205859,87.23398452,187.36,187.32,7.97970018]
[1739741206153,23.73118452,187.36,187.35,7.97970018]
[1739741206452,66.74560703,187.37,187.36,5.3365]
[1739741206657,9.14601484,187.37,187.36,17.7828239]
[1739741207453,181.73746776,187.38,187.37,5.3362]
[1739741207658,172.59391742,187.38,187.37,5.3362]
[1739741208561,172.59391742,187.38,187.36,12.4463239]
[1739741208764,124.59278732,187.38,187.36,12.4463239]
[1739741208962,116.23998732,187.38,187.36,12.4463239]
[1739741209262,16.77545723,187.38,187.36,12.4463239]
[1739741209463,5.7453,187.48,187.36,12.4463239]
[1739741209657,5.7453,187.48,187.42,12.4463239]
[1739741210056,11.0784,187.48,187.42,12.4463239]
[1739741210257,5.7453,187.48,187.42,12.4463239]
[1739741211158,5.7453,187.48,187.43,207.99904373]
[1739741211857,5.3339,187.45,187.43,207.99904373]
[1739741212162,5.7453,187.48,187.43,207.99904373]
[1739741212354,5.7453,187.48,187.43,148.58056419]
[1739741212757,5.3336,187.46,187.43,148.58056419]
[1739741213159,5.3336,187.46,187.43,148.61981109]
[1739741213562,5.3336,187.46,187.45,58.96673207]
[1739741214659,2.9076,187.51,187.45,58.96673207]
[1739741215265,0.26661,187.48,187.45,12.82443505]
[1739741215863,5.3336,187.46,187.45,12.82443505]
[1739741216455,5.3339,187.45,187.44,29.45315584]
[1739741217659,5.3337,187.46,187.44,29.45315584]
[1739741217855,0.26661,187.48,187.44,29.45315584]
[1739741218160,0.26661,187.48,187.44,21.15965584]
[1739741218465,5.3339,187.45,187.44,21.15965584]
[1739741218764,5.3339,187.45,187.44,16.67075584]
[1739741219566,5.3342,187.44,187.43,0.0392469]
[1739741220157,12.4463239,187.46,187.39,7.36328896]
[1739741220865,5.3342,187.44,187.39,7.36328896]
[1739741221456,0.04045722,187.43,187.4,0.03746467]
[1739741223372,0.04045722,187.43,187.4,5.37276467]
[1739741225366,0.04045722,187.43,187.4,0.03746467]
[1739741226565,8.0105824,187.43,187.4,0.03746467]
[1739741227269,13.3451824,187.43,187.4,0.03746467]
[1739741231073,0.04045722,187.43,187.4,0.03746467]
[1739741231264,0.04045722,187.43,187.4,8.00758985]
[1739741232063,0.04045722,187.43,187.42,13.30492518]
[1739741233565,5.722e-05,187.43,187.42,13.30492518]
[1739741234672,5.722e-05,187.43,187.42,17.77579719]
[1739741235075,5.4606,187.51,187.46,5.3334]
[1739741235671,15.35019719,187.58,187.45,12.44099719]
[1739741235875,5.6173,187.57,187.45,12.44099719]
[1739741236075,5.6173,187.57,187.5,0.03450122]
[1739741237372,5.6173,187.57,187.51,5.3322]
[1739741238283,5.6173,187.57,187.5,0.03450122]
[1739741238672,10.9478,187.57,187.5,0.03450122]
[1739741238978,10.9478,187.57,187.5,5.36700122]
[1739741240378,5.6173,187.57,187.51,5.3322]
[1739741240676,0.28183,187.6,187.51,12.44099719]
[1739741241778,0.28183,187.6,187.53,5.3314]
[1739741241976,0.28183,187.6,187.51,12.44099719]
[1739741242178,0.28183,187.6,187.55,0.0387677]
[1739741242479,5.61153,187.6,187.55,0.0387677]
[1739741242669,0.28183,187.6,187.55,0.0387677]
[1739741242873,0.28183,187.6,187.56,5.3306]
[1739741243778,0.28183,187.6,187.55,0.0387677]
[1739741244174,34.30504599,187.71,187.57,12.44099719]
[1739741244370,34.30504599,187.71,187.61,12.44099719]
[1739741244570,34.30504599,187.71,187.62,0.03583527]
[1739741245680,34.30504599,187.71,187.62,5.36483527]
[1739741245976,34.30504599,187.71,187.62,0.03583527]
[1739741246281,12.44099719,187.71,187.62,0.03583527]
[1739741246878,5.328,187.66,187.62,0.03583527]
[1739741247779,0.3359,187.7,187.62,0.03583527]
[1739741247976,5.3276,187.68,187.62,0.03583527]
[1739741248279,0.3359,187.7,187.62,0.03583527]
[1739741248972,5.663,187.7,187.62,0.03583527]
[1739741249172,0.3359,187.7,187.62,0.03583527]
[1739741249577,5.6628,187.7,187.63,5.3287]
[1739741251279,5.3272,187.69,187.62,0.03583527]
[1739741251481,0.3359,187.7,187.62,0.03583527]
[1739741252178,12.44099719,187.69,187.62,0.03583527]
[1739741252383,2.947,187.68,187.62,0.03583527]
[1739741254180,5.3286,187.64,187.62,0.03583527]
[1739741254382,2.947,187.68,187.62,0.03583527]
[1739741254784,5.3282,187.66,187.62,0.03583527]
[1739741255379,8.2744,187.68,187.62,0.03583527]
[1739741255580,2.947,187.68,187.62,0.03583527]
[1739741256789,2.947,187.68,187.62,5.36483527]
[1739741256987,0.3359,187.7,187.62,5.36483527]
[1739741257287,0.3359,187.7,187.62,0.03583527]
[1739741258187,5.3279,187.67,187.62,0.03583527]
[1739741258379,0.3359,187.7,187.62,0.03583527]
[1739741258786,5.328,187.66,187.62,0.03583527]
[1739741259388,5.3278,187.67,187.62,0.03583527]
[1739741259580,0.3359,187.7,187.62,0.03583527]
[1739741259987,5.3276,187.68,187.62,0.03583527]
[1739741260190,0.3359,187.7,187.62,5.36493527]
[1739741260690,15.18569719,187.72,187.62,5.36493527]
[1739741260884,5.3271,187.69,187.62,5.36493527]
[1739741261083,5.3271,187.69,187.63,5.3288]
[1739741262694,15.18569719,187.72,187.64,5.3285]
[1739741263091,15.18569719,187.72,187.66,0.03550326]
[1739741263292,2.7447,187.72,187.66,0.03550326]
[1739741263494,8.0712,187.72,187.66,0.03550326]
[1739741263692,2.7447,187.72,187.66,0.03550326]
[1739741264995,5.6651,187.74,187.66,0.03550326]
[1739741265388,5.3263,187.72,187.66,0.03550326]
[1739741265593,5.6651,187.74,187.66,0.03550326]
[1739741265794,5.6651,187.74,187.67,5.3276]
[1739741265992,10.9909,187.74,187.67,5.3276]
[1739741266187,5.6651,187.74,187.66,0.03550326]
[1739741266591,5.3262,187.73,187.66,5.36330326]
[1739741268190,5.3266,187.71,187.66,0.03550326]
[1739741268395,5.6651,187.74,187.66,0.03550326]
[1739741268591,7.94499742,187.73,187.66,7.98050068]
[1739741268890,5.3267,187.71,187.66,7.98050068]
[1739741269999,13.27099742,187.73,187.66,13.30830068]
[1739741270201,5.6651,187.74,187.68,7.94499742]
[1739741270597,5.6651,187.74,187.69,5.3269]
[1739741271499,5.6651,187.74,187.69,5.327]
[1739741271896,5.6651,187.74,187.68,7.94499742]
[1739741272299,5.6651,187.74,187.7,5.3267]
[1739741272600,5.6651,187.74,187.68,7.94499742]
[1739741272802,5.6651,187.74,187.7,0.03869406]
[1739741275898,5.6651,187.74,187.7,7.98369148]
[1739741276498,5.6651,187.74,187.7,13.31049148]
[1739741276699,7.94499742,187.77,187.7,7.98369148]
[1739741277601,13.27009742,187.77,187.7,7.98369148]
[1739741277802,13.27009742,187.77,187.71,5.3265]
[1739741278301,7.94499742,187.77,187.7,13.31039148]
[1739741278807,7.94499742,187.77,187.7,7.98369148]
[1739741279104,5.3254,187.75,187.7,7.98369148]
[1739741280307,7.94499742,187.75,187.7,0.03869406]
[1739741280798,5.3258,187.74,187.7,0.03869406]
[1739741281705,7.94499742,187.75,187.7,7.98369148]
[1739741282008,16.65509742,187.79,187.72,7.94499742]
[1739741282203,16.65509742,187.79,187.73,5.326]